bitfinex/quotes_SOLUSD_20250622
["timestamp","ask_amount","ask_price","bid_price","bid_amount"]
[1750550672742,10.05313981,135.78,135.68,26.0]
[1750550673115,10.05313981,135.78,135.69,18.05586262]
[1750550673631,15.2087593,135.78,135.69,18.05586262]
[1750550674026,10.05313981,135.78,135.69,30.53916262]
[1750550674234,10.05313981,135.78,135.72,26.0]
[1750550675127,10.05313981,135.78,135.73,18.05054151]
[1750550675333,5.15242504,135.86,135.73,18.05054151]
[1750550675850,18.64964886,135.85,135.73,18.05054151]
[1750550676327,31.15242504,135.86,135.73,18.05054151]
[1750550676526,18.64964886,135.85,135.73,18.05054151]
[1750550676937,23.80271646,135.85,135.73,18.05054151]
[1750550680853,5.15350069,135.83,135.73,18.05054151]
[1750550681054,18.64964886,135.82,135.71,5.15805762]
[1750550681606,18.64964886,135.82,135.71,18.05320167]
[1750550681730,18.64964886,135.8,135.71,5.15805762]
[1750550682552,26.0,135.77,135.7,5.15840162]
[1750550682764,5.15653775,135.75,135.67,16.29144272]
[1750550683068,44.64964886,135.74,135.67,11.13187948]
[1750550683235,26.0,135.71,135.67,11.13187948]
[1750550683426,18.64964886,135.71,135.67,11.13187948]
[1750550683637,44.64964886,135.74,135.67,11.13187948]
[1750550684829,5.15729757,135.73,135.67,11.13187948]
[1750550685062,18.64964886,135.72,135.67,11.13187948]
[1750550685225,5.15729757,135.73,135.67,11.13187948]
[1750550685456,26.0,135.74,135.67,16.29136395]
[1750550685756,31.15706098,135.74,135.67,11.13187948]
[1750550685971,18.64964886,135.73,135.67,11.13187948]
[1750550686585,18.64964886,135.69,135.67,11.13187948]
[1750550686983,26.0,135.7,135.67,11.13187948]
[1750550687278,18.64964886,135.7,135.67,11.13187948]
[1750550687455,23.80812244,135.7,135.67,11.13187948]
[1750550687658,26.0,135.68,135.67,11.13187948]
[1750550687968,23.80775716,135.71,135.67,11.13187948]
[1750550688162,26.0,135.7,135.67,11.13187948]
[1750550688753,44.64964886,135.74,135.67,11.13187948]
[1750550690868,5.15729757,135.73,135.67,11.13187948]
[1750550691187,18.64964886,135.7,135.67,11.13187948]
[1750550691873,5.15653775,135.75,135.67,11.13187948]
[1750550692369,31.15653775,135.75,135.67,11.13187948]
[1750550692572,26.0,135.75,135.67,16.29137092]
[1750550692970,23.80585618,135.76,135.67,16.29137092]
[1750550693369,26.0,135.77,135.67,16.29137092]
[1750550693679,18.64964886,135.77,135.67,29.19031689]
[1750550693880,5.15312131,135.84,135.68,12.5182]
[1750550694488,18.64964886,135.76,135.68,12.5182]
[1750550694699,26.0,135.77,135.68,12.5182]
[1750550694862,23.80491399,135.79,135.69,5.15881789]
[1750550695069,50.08352923,135.79,135.69,18.05586262]
[1750550695398,5.43388037,135.79,135.69,18.05586262]
[1750550695567,26.0,135.81,135.69,18.05586262]
[1750550695903,35.99359611,135.82,135.69,18.05586262]
[1750550696100,5.43388037,135.83,135.69,18.05586262]
[1750550696568,24.08352923,135.83,135.7,26.0]
[1750550696774,5.43388037,135.82,135.7,26.0]
[1750550696969,5.15387692,135.83,135.71,18.05320167]
[1750550697202,10.58775729,135.83,135.71,18.05320167]
[1750550697371,5.43388037,135.82,135.71,18.05320167]
[1750550698401,5.43388037,135.81,135.71,43.84348978]
[1750550698567,5.43388037,135.83,135.71,43.84348978]
[1750550698762,6.7561125,135.85,135.71,43.84348978]
[1750550698763,5.43388037,135.84,135.71,43.84348978]
[1750550698966,5.43388037,135.83,135.71,43.84348978]
[1750550699268,5.43388037,135.84,135.71,43.84348978]
[1750550699487,9.20082016,135.85,135.71,43.84348978]
[1750550699667,14.35372237,135.85,135.71,43.84348978]
[1750550699869,5.43388037,135.84,135.71,43.84348978]
[1750550700086,10.58723744,135.84,135.71,43.84348978]
[1750550700365,14.35362529,135.85,135.71,43.84348978]
[1750550700573,26.0,135.8,135.71,5.15805762]
[1750550700796,26.0,135.76,135.68,12.5182]
[1750550700971,26.0,135.74,135.67,11.13187948]
[1750550701173,18.64964886,135.73,135.67,11.13187948]
[1750550701408,26.0,135.7,135.67,11.13187948]
[1750550701603,5.43388037,135.69,135.67,11.13187948]
[1750550701910,24.08352923,135.69,135.67,11.13187948]
[1750550702074,10.59307848,135.68,135.67,11.13187948]
[1750550702274,29.24272734,135.68,135.67,11.13187948]
[1750550702471,26.0,135.65,135.51,41.50527518]
[1750550702678,26.0,135.64,135.51,41.50527518]
[1750550702877,44.64964886,135.63,135.51,41.50527518]
[1750550703078,50.08352923,135.63,135.51,5.16567043]
[1750550703298,18.64964886,135.61,135.51,5.16567043]
[1750550703673,26.0,135.63,135.51,18.0798465]
[1750550704073,5.1614806,135.62,135.51,18.0798465]
[1750550704798,26.0,135.63,135.51,18.0798465]
[1750550705202,26.0,135.64,135.51,18.0798465]
[1750550705904,10.50138756,135.69,135.58,26.0]
[1750550706101,10.50138756,135.69,135.59,5.16262261]
[1750550706273,26.0,135.68,135.55,26.0]
[1750550707587,18.64964886,135.67,135.56,5.16376512]
[1750550708099,18.64964886,135.67,135.54,5.16452707]
[1750550709095,18.64964886,135.65,135.51,5.16567043]
[1750550709302,18.64964886,135.61,135.51,5.16567043]
[1750550709484,26.0,135.62,135.51,18.0798465]
[1750550710796,25.9,135.62,135.51,18.0798465]
[1750550710973,31.06156079,135.62,135.51,18.0798465]
[1750550711173,31.06156079,135.62,135.51,5.16567043]
[1750550711500,18.64964886,135.61,135.51,5.16567043]
[1750550711801,18.64964886,135.61,135.5,17.40083336]
[1750550711984,18.64964886,135.61,135.5,12.2348]
[1750550712192,18.64964886,135.61,135.48,1.5798617]
[1750550712422,18.64964886,135.61,135.48,6.74665468]
[1750550712583,5.16156079,135.62,135.51,5.16567043]
[1750550712975,18.64964886,135.58,135.49,5.16643294]
[1750550713199,18.64964886,135.58,135.48,6.74662376]
[1750550713911,26.0,135.55,135.48,6.74662376]
[1750550714291,5.16354999,135.57,135.48,6.74662376]
[1750550714494,18.64964886,135.57,135.48,6.74662376]
[1750550715619,18.64964886,135.55,135.48,1.5798617]
[1750550715901,26.0,135.56,135.48,6.74651945]
[1750550716503,12.90418386,135.62,135.48,6.74651945]
[1750550716706,18.64964886,135.58,135.48,6.74651945]
[1750550717207,10.58249571,135.61,135.48,19.66355517]
[1750550717378,18.64964886,135.57,135.48,6.74660078]
[1750550717587,26.0,135.57,135.48,6.74660078]
[1750550717889,10.41335634,135.63,135.52,26.0]
[1750550718090,10.41335634,135.63,135.48,64.1473568]
[1750550718091,9.99999944,135.57,135.48,1.5798617]
[1750550718299,18.64964886,135.47,135.39,12.7119]
[1750550718497,26.0,135.48,135.39,17.88190249]
[1750550718685,18.64964886,135.49,135.39,17.88190249]
[1750550718884,18.64964886,135.45,135.39,12.7119]
[1750550719393,26.0,135.46,135.39,12.7119]
[1750550719591,40.38254005,135.48,135.39,12.7119]
[1750550719903,3.79220502,135.47,135.39,17.88207764]
[1750550720086,3.79220502,135.47,135.39,30.80769991]
[1750550720286,9.21542893,135.48,135.39,30.80769991]
[1750550720287,9.21542893,135.48,135.39,30.30769991]
[1750550721692,14.38236013,135.48,135.39,17.38207764]
[1750550721889,14.38236013,135.48,135.39,12.2119]
[1750550722494,18.64964886,135.47,135.39,12.2119]
[1750550722695,5.16370443,135.57,135.4,92.28811288]
[1750550722878,12.8922,135.62,135.4,92.28811288]
[1750550722879,18.06784659,135.6,135.4,26.0]
[1750550723086,3.78860881,135.54,135.4,26.0]
[1750550723292,10.04443145,135.56,135.47,31.36154886]
[1750550723493,10.04443145,135.56,135.5,26.0]
[1750550723695,10.04443145,135.56,135.51,18.0798465]
[1750550724002,16.06903224,135.66,135.51,18.0798465]
[1750550724003,5.16188114,135.61,135.51,18.0798465]
[1750550724205,5.16188114,135.61,135.51,5.16567043]
[1750550724902,18.64964886,135.6,135.47,17.87878845]
[1750550725102,26.0,135.57,135.47,17.87878845]
[1750550725309,18.64964886,135.56,135.47,12.7119]
[1750550725484,26.0,135.58,135.47,17.87900798]
[1750550725684,26.0,135.58,135.47,25.62988922]
[1750550725885,5.16265752,135.59,135.47,25.62988922]
[1750550726916,23.81195981,135.6,135.47,25.62988922]
[1750550727088,5.16110005,135.63,135.48,18.64964886]
[1750550727508,26.0,135.62,135.48,18.64964886]
[1750550727910,31.16186121,135.61,135.49,18.0825153]
[1750550728112,18.64964886,135.6,135.49,5.16643294]
[1750550728294,18.64964886,135.56,135.47,12.7119]
[1750550728498,26.0,135.57,135.47,17.87903127]
[1750550728796,26.0,135.59,135.47,17.87903127]
[1750550728997,18.64964886,135.6,135.47,17.87903127]
[1750550729690,31.16186121,135.61,135.47,56.63299893]
[1750550730592,18.64964886,135.6,135.47,30.79702049]
[1750550731707,26.0,135.57,135.47,30.79702049]
[1750550732189,26.0,135.53,135.42,12.8074]
[1750550732388,36.72282678,135.56,135.42,12.8074]
[1750550732389,26.0,135.55,135.42,12.8074]
[1750550732590,18.64964886,135.54,135.42,12.8074]
[1750550732790,26.0,135.51,135.42,12.8074]
[1750550732990,18.64964886,135.5,135.42,12.8074]
[1750550734148,5.16643294,135.49,135.42,12.8074]
[1750550736314,31.16601742,135.51,135.42,17.97650335]
[1750550736696,26.0,135.47,135.37,12.8397]
[1750550737829,31.16750517,135.47,135.38,5.17063081]
[1750550741653,18.64964886,135.46,135.37,12.8397]
[1750550742627,44.64964886,135.44,135.37,12.8397]
[1750550742818,44.64964886,135.44,135.32,12.7888]
[1750550743007,88.81964886,135.44,135.32,12.7888]
[1750550743415,26.0,135.4,135.32,12.7888]
[1750550743812,26.0,135.39,135.32,12.7888]
[1750550744629,31.17033705,135.39,135.32,17.96146059]
[1750550744821,31.17033705,135.39,135.32,12.7888]
[1750550745036,31.17033705,135.39,135.3,5.17362693]
[1750550745412,18.64964886,135.38,135.3,5.17362693]
[1750550746030,5.17101277,135.37,135.28,5.17445298]
[1750550746214,31.17055241,135.39,135.28,18.11058544]
[1750550746608,31.17055241,135.39,135.28,5.17445298]
[1750550746609,18.64964886,135.38,135.28,5.17445298]
[1750550747127,24.0983703,135.38,135.28,5.17445298]
[1750550747327,24.10059326,135.38,135.28,5.17445298]
[1750550747535,18.64964886,135.38,135.28,18.11058544]
[1750550747708,31.17055241,135.39,135.28,18.11058544]
[1750550747914,26.0,135.37,135.28,18.11058544]
[1750550748432,23.82009534,135.39,135.28,18.11058544]
[1750550748659,18.64964886,135.42,135.28,18.11058544]
[1750550748932,18.64964886,135.38,135.28,18.11058544]
[1750550750113,18.64964886,135.34,135.27,18.00541027]
[1750550750313,26.0,135.35,135.27,18.00541027]
[1750550750518,26.0,135.35,135.27,30.94249905]
[1750550750840,26.0,135.35,135.27,18.00541027]
[1750550751430,18.64964886,135.37,135.25,5.17531393]
[1750550751431,26.0,135.31,135.25,5.17531393]
[1750550751623,5.44182051,135.36,135.25,18.11431577]
[1750550751924,26.0,135.35,135.25,18.11431577]
[1750550752221,18.64964886,135.33,135.25,12.93900184]
[1750550752617,18.64964886,135.34,135.25,12.93900184]
[1750550753035,18.64964886,135.34,135.24,5.17598343]
[1750550753951,26.0,135.31,135.24,5.17598343]
[1750550754247,26.0,135.31,135.23,5.17636619]
[1750550754833,18.64964886,135.3,135.23,5.17636619]
[1750550755720,26.0,135.33,135.23,5.17636619]
[1750550755918,26.01464886,135.36,135.23,5.17636619]
[1750550756229,18.64964886,135.34,135.23,18.11728166]
[1750550757545,23.82188664,135.34,135.23,18.11728166]
[1750550758023,26.0,135.31,135.23,18.11728166]
[1750550758720,26.0,135.31,135.23,5.17636619]
[1750550758921,23.82188664,135.34,135.23,5.17636619]
[1750550759235,26.0,135.32,135.23,18.11728166]
[1750550759835,31.17257044,135.33,135.23,18.11728166]
[1750550760226,31.17257044,135.33,135.23,5.17636619]
[1750550760430,31.17257044,135.33,135.22,14.6031617]
[1750550760431,26.0,135.29,135.22,14.6031617]
[1750550760629,22.33400287,135.37,135.23,31.73564886]
[1750550760835,3.79413057,135.4,135.27,18.64964886]
[1750550761034,3.79413057,135.4,135.31,13.086]
[1750550761330,8.28119681,135.46,135.31,13.086]
[1750550761331,13.93422318,135.48,135.39,26.0]
[1750550761522,3.79282781,135.45,135.38,13.086]
[1750550761843,26.0,135.45,135.39,5.17024891]
[1750550762061,26.0,135.45,135.37,5.17096331]
[1750550762062,26.0,135.44,135.37,5.17096331]
[1750550762355,26.0,135.4,135.34,5.172159]
[1750550762721,26.0,135.4,135.31,5.17330574]
[1750550763124,18.64964886,135.39,135.31,5.17330574]
[1750550763338,26.0,135.36,135.31,5.17330574]
[1750550763647,26.0,135.36,135.29,5.17407051]
[1750550765348,3.2148,135.42,135.3,18.64964886]
[1750550765553,18.64964886,135.44,135.3,18.64964886]
[1750550765731,5.16855274,135.44,135.31,18.10657009]
[1750550765932,5.16791266,135.46,135.32,18.64964886]
[1750550766252,18.71421814,135.47,135.32,18.64964886]
[1750550766253,16.51647519,135.47,135.32,18.64964886]
[1750550766557,16.51647519,135.47,135.37,12.8501]
[1750550766558,8.13441814,135.47,135.37,12.8501]
[1750550766763,8.13441814,135.47,135.38,18.64964886]
[1750550766941,34.13441814,135.47,135.38,18.64964886]
[1750550767137,8.50169746,135.48,135.37,13.58829341]
[1750550767330,8.50169746,135.48,135.37,12.8501]
[1750550767531,12.29241913,135.48,135.37,12.8501]
[1750550767753,12.29241913,135.48,135.38,36.74685671]
[1750550768052,38.29241913,135.48,135.38,18.09720785]
[1750550768226,12.29241913,135.48,135.39,18.64964886]
[1750550768421,8.50169746,135.48,135.39,18.64964886]
[1750550768627,8.50169746,135.48,135.39,64.64964886]
[1750550769250,12.9094128,135.56,135.39,18.64964886]
[1750550769452,12.9094128,135.56,135.39,64.62964886]
[1750550769453,18.64964886,135.55,135.39,64.62964886]
[1750550769756,5.16452707,135.54,135.4,18.09453471]
[1750550769944,23.81341398,135.56,135.41,18.64964886]
[1750550770125,3.7887188,135.55,135.41,44.64964886]
[1750550770327,26.0,135.53,135.41,44.64964886]
[1750550770522,3.7887188,135.55,135.44,26.0]
[1750550770756,3.7887188,135.55,135.45,18.64964886]
[1750550770945,13.20499928,135.59,135.47,18.64964886]
[1750550771139,13.69202468,135.59,135.47,18.64964886]
[1750550771339,13.69202468,135.59,135.47,44.64964886]
[1750550771545,3.7873254,135.59,135.47,44.64964886]
[1750550771742,3.7873254,135.59,135.49,18.64964886]
[1750550772067,5.16066761,135.65,135.48,18.08385]
[1750550772227,26.0,135.62,135.51,26.0]
[1750550772633,26.0,135.61,135.51,26.0]
[1750550772829,5.16066761,135.65,135.52,18.64964886]
[1750550773067,18.64964886,135.64,135.51,26.0]
[1750550773233,5.16066761,135.65,135.52,18.64964886]
[1750550773563,26.0,135.62,135.52,18.64964886]
[1750550773772,5.1611387,135.63,135.53,5.16490813]
[1750550773934,5.16068401,135.65,135.53,5.16490813]
[1750550774264,26.0,135.62,135.53,5.16490813]
[1750550774632,5.15960664,135.67,135.54,18.64964886]
[1750550775035,3.79253397,135.65,135.55,12.8189]
[1750550775236,8.72468859,135.7,135.56,18.64964886]
[1750550775237,8.45907694,135.7,135.56,18.64964886]
[1750550775557,18.64964886,135.69,135.56,18.64964886]
[1750550775757,5.15919811,135.68,135.57,5.16338422]
[1750550776537,26.0,135.66,135.57,18.07184479]
[1750550776732,3.3003,135.7,135.57,18.07184479]
[1750550776955,8.45874237,135.7,135.57,18.07184479]
[1750550777334,18.64964886,135.69,135.57,5.16338422]
[1750550777540,18.64964886,135.61,135.5,12.3344]
[1750550777739,26.0,135.6,135.51,18.07949982]
[1750550777963,26.0,135.6,135.52,18.64964886]
[1750550778180,18.64964886,135.69,135.52,18.64964886]
[1750550778340,26.0,135.66,135.52,44.64964886]
[1750550779341,26.0,135.66,135.53,18.07717847]
[1750550779741,26.0,135.65,135.53,18.07717847]
[1750550780455,26.0,135.66,135.54,18.64964886]
[1750550780676,26.0,135.65,135.54,18.64964886]
[1750550780866,26.0,135.61,135.53,5.16490813]
[1750550781165,26.0,135.61,135.51,18.0798465]
[1750550781342,26.0,135.6,135.51,18.0798465]
[1750550781842,26.0,135.62,135.51,18.0798465]
[1750550782041,26.0,135.62,135.52,18.64964886]
[1750550782451,18.64964886,135.68,135.52,18.64964886]
[1750550782766,44.64964886,135.65,135.52,18.64964886]
[1750550783475,49.81031438,135.65,135.53,18.07717847]
[1750550783877,62.71116214,135.65,135.53,5.16490813]
[1750550784365,49.81031438,135.65,135.53,5.16490813]
[1750550784676,36.70551148,135.69,135.54,18.64964886]
[1750550784973,26.0,135.66,135.54,18.64964886]
[1750550785579,31.16005628,135.66,135.55,18.07451124]
[1750550785879,5.16005628,135.66,135.55,18.07451124]
[1750550786069,31.16005628,135.66,135.55,18.07451124]
[1750550786584,3.3003,135.7,135.57,12.3344]
[1750550786881,3.79055994,135.66,135.57,12.3344]
[1750550787105,26.0,135.68,135.57,12.3344]
[1750550787762,31.15951437,135.68,135.58,5.16300339]
[1750550788282,26.0,135.65,135.58,5.16300339]
[1750550789467,8.95090499,135.66,135.58,5.16300339]
[1750550789685,26.0,135.63,135.57,12.3344]
[1750550789865,26.0,135.63,135.57,17.49766182]
[1750550790696,26.0,135.63,135.57,5.16326182]
[1750550790881,26.0,135.65,135.54,12.91081776]
[1750550791065,26.0,135.65,135.55,18.64964886]
[1750550791488,26.0,135.63,135.54,12.91081776]
[1750550792167,29.79093773,135.66,135.54,12.91081776]
[1750550792369,26.0,135.65,135.54,12.91081776]
[1750550792784,26.0,135.61,135.54,12.91081776]
[1750550793666,3.79093773,135.66,135.54,12.91081776]
[1750550793870,3.79093773,135.66,135.55,18.64964886]
[1750550794193,8.45875872,135.7,135.55,18.64964886]
[1750550794396,26.0,135.67,135.55,18.64964886]
[1750550794778,26.0,135.67,135.56,18.07317792]
[1750550795781,31.15969698,135.67,135.56,18.07317792]
[1750550795983,18.64964886,135.66,135.56,5.16376512]
[1750550796287,18.64964886,135.66,135.52,18.07851239]
[1750550796488,18.64964886,135.66,135.52,5.16528925]
[1750550796792,26.0,135.61,135.52,5.16528925]
[1750550796970,31.16187931,135.61,135.52,5.16528925]
[1750550797995,26.0,135.57,135.52,5.16528925]
[1750550799678,31.16268402,135.59,135.52,5.16528925]
[1750550800605,31.16268402,135.59,135.46,5.16757714]
[1750550800606,18.64964886,135.54,135.46,5.16757714]
[1750550800912,26.0,135.51,135.46,5.16757714]
[1750550801109,3.2675,135.6,135.46,18.08652]
[1750550801110,10.6525,135.6,135.46,18.08652]
[1750550801403,26.0,135.56,135.46,18.08652]
[1750550801603,26.0,135.52,135.46,5.16757714]
[1750550802278,26.0,135.52,135.45,17.42845079]
[1750550802689,18.64964886,135.55,135.45,17.42845079]
[1750550802690,26.0,135.55,135.45,17.42845079]
[1750550802895,26.0,135.55,135.45,12.2605]
[1750550804114,26.0,135.53,135.45,25.18039664]
[1750550805887,26.0,135.54,135.45,25.18039664]
[1750550806089,26.0,135.53,135.45,30.34835529]
[1750550806293,5.16340436,135.57,135.45,30.34835529]
[1750550806809,26.0,135.54,135.45,30.34835529]
[1750550807184,26.0,135.53,135.45,30.34835529]
[1750550807788,17.45648833,135.6,135.46,18.64964886]
[1750550807994,5.44112643,135.57,135.48,18.64964886]
[1750550808193,29.2675,135.6,135.47,45.02]
[1750550808393,26.0,135.58,135.48,18.64964886]
[1750550809193,3.2675,135.6,135.49,18.0825153]
[1750550809194,26.0,135.6,135.49,18.0825153]
[1750550809517,26.0,135.59,135.49,18.0825153]
[1750550810296,18.64964886,135.58,135.49,5.16643294]
[1750550810613,26.0,135.54,135.47,5.16719568]
[1750550811509,26.0,135.54,135.47,12.91798922]
[1750550812088,26.0,135.55,135.47,12.91798922]
[1750550813424,26.0,135.55,135.46,31.00546286]
[1750550813425,26.0,135.55,135.46,5.16757714]
[1750550813599,26.0,135.54,135.46,5.16757714]
[1750550813798,26.0,135.53,135.46,5.16757714]
[1750550814113,26.0,135.52,135.46,5.16757714]
[1750550814315,26.0,135.52,135.41,5.16948526]
[1750550814694,31.44782371,135.52,135.41,5.16948526]
[1750550814912,26.0,135.52,135.41,5.16948526]
[1750550815107,26.0,135.48,135.41,5.16948526]
[1750550815316,26.0,135.48,135.41,18.09319842]
[1750550815518,5.44782371,135.53,135.41,18.09319842]
[1750550815822,26.0,135.51,135.41,18.09319842]
[1750550816018,26.0,135.5,135.41,18.09319842]
[1750550816193,31.44782371,135.5,135.41,18.09319842]
[1750550816391,26.0,135.49,135.41,5.16948526]
[1750550816899,26.0,135.5,135.41,5.16948526]
[1750550817390,26.0,135.5,135.41,12.92371316]
[1750550820693,26.0,135.51,135.42,18.64964886]
[1750550820899,5.16377196,135.56,135.43,44.74]
[1750550821101,26.0,135.53,135.43,44.74]
[1750550821315,26.0,135.53,135.42,18.64964886]
[1750550821530,3.7968421,135.55,135.44,18.64964886]
[1750550821821,26.0,135.54,135.44,18.64964886]
[1750550822008,3.7968421,135.55,135.46,18.64964886]
[1750550822211,5.16262261,135.59,135.46,18.64964886]
[1750550822396,5.1614806,135.62,135.48,18.64964886]
[1750550822597,10.63651688,135.64,135.48,18.64964886]
[1750550822797,5.16106165,135.64,135.48,18.64964886]
[1750550822997,26.0,135.61,135.48,18.64964886]
[1750550823303,26.0,135.61,135.49,44.66]
[1750550823492,26.0,135.59,135.46,26.0]
[1750550823696,26.0,135.55,135.47,5.16719568]
[1750550825203,26.0,135.55,135.46,18.08652]
[1750550825527,26.0,135.54,135.46,18.08652]
[1750550826299,26.0,135.54,135.46,5.16757714]
[1750550827218,26.0,135.54,135.45,25.47259731]
[1750550827219,26.0,135.53,135.45,25.47259731]
[1750550827625,26.0,135.53,135.45,12.553]
[1750550827826,26.0,135.49,135.41,17.30888211]
[1750550828420,26.0,135.49,135.41,30.23259527]
[1750550828605,26.0,135.48,135.41,30.23259527]
[1750550829003,18.64964886,135.54,135.41,30.23259527]
[1750550829203,12.28281453,135.55,135.42,18.64964886]
[1750550829204,26.0,135.51,135.42,18.64964886]
[1750550829523,26.0,135.51,135.41,30.23259527]
[1750550829828,5.16494337,135.53,135.42,26.0]
[1750550830629,26.0,135.52,135.42,26.0]
[1750550830926,18.64964886,135.53,135.44,26.0]
[1750550831133,5.16528925,135.52,135.45,5.16795865]
[1750550831932,5.16528925,135.52,135.43,5.16872184]
[1750550832301,18.64964886,135.51,135.43,5.16872184]
[1750550832505,26.0,135.48,135.41,12.1397]
[1750550832708,26.0,135.48,135.4,5.1695628]
[1750550832902,26.0,135.48,135.37,12.2904]
[1750550832903,18.64964886,135.47,135.37,12.2904]
[1750550833110,26.0,135.46,135.38,5.17063081]
[1750550833542,26.0,135.46,135.32,42.62451836]
[1750550833543,26.0,135.42,135.32,12.2904]
[1750550833738,26.0,135.38,135.32,12.2904]
[1750550833906,26.0,135.38,135.27,12.2904]
[1750550834230,26.0,135.38,135.27,38.2904]
[1750550834431,18.64964886,135.39,135.27,12.2904]
[1750550834604,26.0,135.36,135.27,12.2904]
[1750550834810,18.64964886,135.35,135.26,5.17521809]
[1750550835113,26.0,135.32,135.23,5.17636619]
[1750550835527,31.17269759,135.33,135.23,5.17636619]
[1750550835722,26.0,135.33,135.23,18.11728166]
[1750550837031,26.0,135.33,135.24,18.64964886]
[1750550837216,26.0,135.3,135.22,13.8702617]
[1750550837420,26.0,135.3,135.22,6.75661026]
[1750550837727,26.0,135.28,135.22,6.75641194]
[1750550837955,26.0,135.28,135.22,1.5798617]
[1750550838243,26.0,135.28,135.22,6.75640905]
[1750550838627,26.0,135.28,135.22,19.69828155]
[1750550839139,8.43897037,135.31,135.24,18.11594202]
[1750550839849,8.43897037,135.31,135.27,26.0]
[1750550840136,8.43897037,135.31,135.25,18.64964886]
[1750550840726,8.43897037,135.31,135.24,18.11594202]
[1750550843328,8.43897037,135.31,135.24,12.93995859]
[1750550844335,8.43897037,135.31,135.23,5.17636619]
[1750550844925,8.43897037,135.31,135.23,18.11728166]
[1750550846122,13.61230331,135.31,135.23,5.17636619]
[1750550846430,8.43897037,135.31,135.23,5.17636619]
[1750550846787,8.43897037,135.31,135.24,18.64964886]
[1750550847324,8.43897037,135.31,135.25,18.11460257]
[1750550847538,8.43897037,135.31,135.25,5.17560073]
[1750550848427,8.43897037,135.31,135.23,5.17636619]
[1750550849140,26.0,135.28,135.23,5.17636619]
[1750550849554,31.17456214,135.28,135.22,1.5798617]
[1750550849727,26.0,135.24,135.22,1.5798617]
[1750550851139,26.0,135.2,135.05,4.84690646]
[1750550851338,12.9255,135.23,135.06,31.09729009]
[1750550851540,26.0,135.2,135.07,62.74964886]
[1750550851935,18.10221724,135.23,135.06,62.24008588]
[1750550852133,26.0,135.19,135.07,18.64964886]
[1750550852333,26.0,135.19,135.06,62.24008588]
[1750550852568,26.0,135.19,135.06,88.24008588]
[1750550852758,26.0,135.19,135.06,62.24008588]
[1750550852939,26.0,135.15,135.06,62.24008588]
[1750550854239,25.86641547,135.23,135.08,26.0]
[1750550854240,12.9255,135.23,135.08,26.0]
[1750550854469,12.9255,135.23,135.11,18.64964886]
[1750550854638,3.0754,135.27,135.13,18.64964886]
[1750550854639,16.0009,135.27,135.13,18.64964886]
[1750550854833,21.17586039,135.27,135.12,12.3883]
[1750550855233,44.64964886,135.22,135.14,5.17981352]
[1750550855856,44.64964886,135.22,135.12,5.18020843]
[1750550856771,44.64964886,135.22,135.07,130.35343797]
[1750550856946,44.64964886,135.22,135.08,5.1821143]
[1750550857360,44.64964886,135.17,135.08,5.1821143]
[1750550859165,26.0,135.18,135.09,18.64964886]
[1750550859339,26.0,135.18,135.1,5.18134715]
[1750550860145,26.0,135.16,135.1,5.18134715]
[1750550861273,15.19440915,135.18,135.07,5.18249796]
[1750550861274,26.0,135.14,135.07,5.18249796]
[1750550861471,26.0,135.12,135.06,5.18288168]
[1750550862969,18.04580975,135.16,135.06,5.18288168]
[1750550863149,26.0,135.12,135.06,5.18288168]
[1750550863470,18.64964886,135.17,135.07,18.64964886]
[1750550863675,26.0,135.14,135.07,18.64964886]
[1750550863977,26.0,135.14,135.06,18.14008588]
[1750550864552,18.64964886,135.13,135.06,5.18288168]
[1750550865059,18.64964886,135.14,135.06,5.18288168]
[1750550865863,26.0,135.13,135.06,31.18288168]
[1750550866375,26.0,135.13,135.06,44.14008588]
[1750550866876,26.0,135.13,135.06,5.18288168]
[1750550867058,26.0,135.13,135.06,18.14008588]
[1750550868971,26.0,135.09,135.05,10.02983799]
[1750550869181,8.98501461,135.14,135.05,10.02983799]
[1750550869478,26.0,135.1,135.05,10.02983799]
[1750550869650,18.64964886,135.13,135.05,10.02983799]
[1750550869858,26.0,135.12,135.05,22.98800163]
[1750550870270,26.0,135.12,135.06,18.64964886]
[1750550870472,3.80513627,135.14,135.06,18.64964886]
[1750550870773,26.0,135.14,135.07,18.13874287]
[1750550870975,22.45514072,135.15,135.07,18.13874287]
[1750550871475,48.45514072,135.15,135.07,18.13874287]